bitfinex/quotes_SOLUSD_20240922
["timestamp","ask_amount","ask_price","bid_price","bid_amount"]
[1727043719265,7.0284,142.28,142.24,0.12549]
[1727043719563,7.029,142.27,142.23,30.807584]
[1727043719746,7.029,142.27,142.23,23.776884]
[1727043720267,7.0293,142.26,142.23,23.776884]
[1727043721872,7.0288,142.27,142.24,1.40582686]
[1727043722165,7.0288,142.27,142.23,23.776884]
[1727043723970,7.0282,142.29,142.25,7.0295]
[1727043724146,0.253505,142.3,142.27,7.0287]
[1727043724472,0.253505,142.3,142.27,30.7499]
[1727043724641,0.253505,142.3,142.28,23.776884]
[1727043724848,0.253505,142.3,142.28,39.590884]
[1727043725772,0.253505,142.3,142.28,15.814]
[1727043727284,7.0291,142.27,142.24,15.814]
[1727043729747,0.253505,142.3,142.24,15.814]
[1727043730054,0.253505,142.3,142.25,24.027864]
[1727043730256,0.253505,142.3,142.27,23.902374]
[1727043730652,7.281005,142.3,142.27,23.776884]
[1727043731856,7.281005,142.3,142.26,30.806184]
[1727043733078,0.253505,142.3,142.26,30.806184]
[1727043734282,7.281005,142.3,142.26,30.806184]
[1727043736673,0.253505,142.3,142.27,0.12549]
[1727043737768,7.280905,142.3,142.26,30.806184]
[1727043737975,7.280905,142.3,142.26,23.776884]
[1727043739959,0.253505,142.3,142.25,0.12549]
[1727043740152,7.029,142.27,142.25,0.12549]
[1727043740762,7.0293,142.26,142.25,0.12549]
[1727043741282,7.0284,142.28,142.25,0.12549]
[1727043741483,0.253505,142.3,142.25,0.12549]
[1727043741781,7.0279,142.29,142.25,7.0297]
[1727043742082,0.253505,142.3,142.25,23.776884]
[1727043742083,7.0284,142.28,142.25,23.776884]
[1727043742260,7.028,142.29,142.25,23.776884]
[1727043742460,7.028,142.29,142.25,30.806684]
[1727043743676,7.028,142.29,142.25,23.776884]
[1727043744374,0.253505,142.3,142.25,23.776884]
[1727043744958,0.253505,142.3,142.26,0.12549]
[1727043745158,7.280905,142.3,142.26,7.15449]
[1727043745378,7.0279,142.29,142.25,30.806684]
[1727043745589,7.0286,142.28,142.25,23.776884]
[1727043746472,7.0286,142.28,142.24,33.3893]
[1727043747369,7.0286,142.28,142.24,40.4195]
[1727043747674,0.253505,142.3,142.25,30.932074]
[1727043747863,7.0279,142.29,142.25,30.932074]
[1727043749990,7.281005,142.3,142.25,30.932074]
[1727043750486,0.253505,142.3,142.27,23.776884]
[1727043751081,0.253505,142.3,142.28,7.0283]
[1727043752464,0.253505,142.3,142.28,0.12549]
[1727043760292,0.253505,142.3,142.29,7.0279]
[1727043760468,0.253505,142.3,142.29,31.67933153]
[1727043761475,0.253505,142.3,142.29,31.80482153]
[1727043761684,0.253505,142.3,142.29,31.055764]
[1727043765693,0.253505,142.3,142.29,30.804784]
[1727043766691,0.253505,142.3,142.29,23.776884]
[1727043767869,0.253505,142.3,142.28,17.5703]
[1727043768479,0.253505,142.3,142.29,23.776884]
[1727043768688,0.253505,142.3,142.29,30.804784]
[1727043769489,0.253505,142.3,142.29,40.36711485]
[1727043769677,0.253505,142.3,142.29,82.64531485]
[1727043769890,0.253505,142.3,142.29,84.04707486]
[1727043771996,0.253505,142.3,142.29,82.64531485]
[1727043773303,0.253505,142.3,142.29,83.2252478]
[1727043774000,0.253505,142.3,142.29,84.0501628]
[1727043776917,0.253505,142.3,142.29,82.64531485]
[1727043780013,0.253505,142.34,142.33,48.493074]
[1727043780186,0.253505,142.34,142.33,57.92991485]
[1727043780708,0.253505,142.34,142.33,77.92991485]
[1727043782625,0.253505,142.34,142.33,101.09112786]
[1727043782917,0.253505,142.34,142.33,101.46641682]
[1727043785012,0.253505,142.34,142.33,77.43855282]
[1727043785230,0.253505,142.34,142.33,75.71345085]
[1727043786510,0.253505,142.34,142.33,99.74131485]
[1727043786909,0.253505,142.34,142.33,24.5907]
[1727043787906,0.253505,142.34,142.3,17.5678]
[1727043788427,0.253505,142.34,142.31,20.0]
[1727043789308,0.253505,142.34,142.32,7.0263]
[1727043790023,0.253505,142.34,142.33,31.053764]
[1727043790732,0.253505,142.34,142.32,24.5909]
[1727043790929,0.253505,142.34,142.32,17.5649]
[1727043792518,0.253505,142.34,142.32,24.5911]
[1727043792838,0.253505,142.34,142.33,7.0259]
[1727043793945,0.253505,142.34,142.33,7.48100052]
[1727043794529,0.253505,142.34,142.33,51.053764]
[1727043796046,0.253505,142.34,142.33,51.90667]
[1727043796210,0.253505,142.34,142.33,51.053764]
[1727043800461,0.3155276,142.38,142.37,44.83468]
[1727043800743,0.3155276,142.38,142.37,77.92291485]
[1727043805537,0.3155276,142.38,142.37,68.611564]
[1727043806339,0.3155276,142.38,142.37,24.5837]
[1727043806546,0.3155276,142.38,142.34,24.5881]
[1727043806728,0.3155276,142.38,142.33,7.0257]
[1727043806729,7.024,142.37,142.33,7.0257]
[1727043807055,7.3390276,142.38,142.34,7.0253]
[1727043807537,0.3155276,142.38,142.35,7.0249]
[1727043807849,0.3155276,142.38,142.36,7.0243]
[1727043808646,0.3155276,142.38,142.37,7.27488]
[1727043808824,0.3155276,142.38,142.37,31.051764]
[1727043809547,0.3155276,142.38,142.37,40.36311485]
[1727043809753,0.3155276,142.38,142.37,60.75862406]
[1727043810347,0.3468434,142.44,142.37,60.75862406]
[1727043810348,0.3468434,142.44,142.41,17.67979]
[1727043810578,0.3468434,142.44,142.43,31.048764]
[1727043810843,0.3468434,142.44,142.43,65.55742586]
[1727043811623,0.3468434,142.44,142.43,80.70222586]
[1727043811949,0.3468434,142.44,142.43,81.67299274]
[1727043813253,0.3468434,142.44,142.43,66.193564]
[1727043813570,0.3468434,142.44,142.43,51.048764]
[1727043817422,0.3468434,142.44,142.43,52.39442214]
[1727043817626,0.3468434,142.44,142.43,66.903084]
[1727043818026,0.3468434,142.44,142.43,102.007984]
[1727043821154,0.3468434,142.44,142.43,104.819488]
[1727043822651,0.3468434,142.44,142.43,119.964288]
[1727043822864,0.3155276,142.47,142.46,68.596064]
[1727043823036,22.0242,142.55,142.52,7.0165]
[1727043823037,15.0087,142.55,142.52,7.0165]
[1727043823247,0.3551727,142.53,142.52,30.918874]
[1727043823763,0.3551727,142.53,142.52,65.55302586]
[1727043824348,0.3238569,142.57,142.56,30.791384]
[1727043824632,0.3964819,142.57,142.56,51.042364]
[1727043825039,0.3964819,142.57,142.56,65.55102586]
[1727043825654,0.3964819,142.57,142.56,81.13309856]
[1727043825843,0.3964819,142.57,142.56,87.75519856]
[1727043826049,0.3551727,142.62,142.61,7.0121]
[1727043826368,0.3551727,142.62,142.61,51.039964]
[1727043827235,0.0620226,142.64,142.6,17.5304]
[1727043827236,0.3171708,142.64,142.62,51.039164]
[1727043827455,0.4105092,142.64,142.62,51.039164]
[1727043827639,0.4105092,142.64,142.63,27.0111]
[1727043828261,7.0117,142.62,142.57,24.5489]
[1727043828462,16.6651,142.63,142.57,17.5351]
[1727043828764,0.4105092,142.64,142.59,17.5315]
[1727043829756,0.4105092,142.64,142.61,0.25098]
[1727043830160,0.4105092,142.64,142.61,20.25098]
[1727043830354,0.4105092,142.64,142.61,27.26298]
[1727043831147,0.4105092,142.64,142.61,37.5293]
[1727043831464,0.4105092,142.64,142.63,50.913474]
[1727043833480,0.4105092,142.64,142.63,50.717374]
[1727043834761,0.4105092,142.64,142.63,52.24464996]
[1727043834966,0.4105092,142.64,142.63,50.842864]
[1727043835173,0.4105092,142.64,142.63,50.717374]
[1727043836468,0.4105092,142.64,142.63,26.815]
[1727043838250,0.4105092,142.64,142.63,50.842864]
[1727043839661,0.4105092,142.64,142.63,50.717374]
[1727043839968,0.4105092,142.64,142.62,20.0]
[1727043840167,0.4105092,142.64,142.62,27.0115]
[1727043840474,0.4105092,142.64,142.63,7.0111]
[1727043840662,0.4105092,142.64,142.63,27.0111]
[1727043841274,0.4105092,142.64,142.63,51.038964]
[1727043841446,0.4105092,142.64,142.63,65.54762586]
[1727043843354,0.5034903,142.71,142.69,44.027864]
[1727043843553,0.5034903,142.71,142.7,65.54422586]
[1727043843768,0.5034903,142.71,142.7,51.035564]
[1727043844073,0.5034903,142.71,142.7,50.910074]
[1727043846493,0.5034903,142.71,142.7,20.0]
[1727043846699,0.5034903,142.71,142.69,20.0]
[1727043846848,0.5034903,142.71,142.7,7.0077]
[1727043847050,0.5034903,142.71,142.7,51.035564]
[1727043847256,0.5034903,142.71,142.7,65.54422586]
[1727043847751,0.5034903,142.71,142.7,27.13319]
[1727043847947,0.5034903,142.71,142.7,51.035564]
[1727043848164,0.5034903,142.71,142.7,65.54422586]
[1727043850862,0.5034903,142.71,142.7,81.43702586]
[1727043851066,0.5034903,142.79,142.72,68.551364]
[1727043851272,0.5034903,142.79,142.72,83.06002586]
[1727043851473,7.0037,142.78,142.72,68.551364]
[1727043852267,7.5068903,142.79,142.72,68.551364]
[1727043852558,0.5034903,142.79,142.72,83.06002586]
[1727043852762,0.5034903,142.79,142.78,7.0037]
[1727043853687,0.5034903,142.79,142.78,8.34049857]
[1727043853878,0.5034903,142.79,142.78,7.0037]
[1727043854465,0.5034903,142.79,142.77,17.5102]
[1727043854885,0.5034903,142.79,142.77,24.5144]
[1727043855662,0.5034903,142.79,142.77,17.5102]
[1727043857494,7.0046,142.77,142.72,7.0066]
[1727043857690,7.0046,142.77,142.68,35.0423]
[1727043857691,7.0049,142.76,142.71,24.5244]
[1727043857882,7.0049,142.76,142.72,7.0066]
[1727043858196,7.0042,142.77,142.71,17.5174]
[1727043858771,7.0039,142.78,142.73,7.006]
[1727043859878,7.0043,142.77,142.73,7.006]
[1727043860091,16.8679903,142.79,142.73,7.006]
[1727043860295,7.0039,142.78,142.73,7.006]
[1727043860489,7.0039,142.78,142.74,7.0056]
[1727043861591,7.0043,142.77,142.73,24.5211]
[1727043862267,7.0038,142.78,142.73,24.5211]
[1727043862684,7.0038,142.78,142.74,7.0056]
[1727043863670,7.0037,142.78,142.73,17.515]
[1727043863974,7.0037,142.78,142.73,24.5211]
[1727043864177,16.8679903,142.79,142.71,20.0]
[1727043864684,7.0043,142.77,142.72,7.0065]
[1727043865901,16.8679903,142.79,142.71,20.0]
[1727043866078,16.8679903,142.79,142.7,17.5184]
[1727043866794,7.0053,142.75,142.7,24.5257]
[1727043866980,7.0053,142.75,142.71,7.0071]
[1727043868298,7.0053,142.75,142.7,17.5184]
[1727043868299,7.0053,142.75,142.7,24.526]
[1727043868480,7.0057,142.74,142.7,24.526]
[1727043869073,7.0053,142.75,142.71,7.007]
[1727043870000,7.0053,142.75,142.7,24.526]
[1727043870501,7.0059,142.74,142.7,17.5184]
[1727043872210,7.0052,142.75,142.7,24.526]
[1727043872412,17.5102,142.78,142.68,7.0085]
[1727043872706,15.5395,142.72,142.66,6.3375]
[1727043873005,7.0077,142.7,142.65,7.0097]
[1727043873704,7.0077,142.7,142.65,7.0098]
[1727043873878,7.0077,142.7,142.64,17.5263]
[1727043874277,22.0179,142.72,142.68,7.0082]
[1727043874703,7.0072,142.71,142.66,17.5236]
[1727043875192,29.0247,142.72,142.67,30.911474]
[1727043875583,7.0073,142.71,142.67,30.785984]
[1727043875805,7.0073,142.71,142.67,7.0091]
[1727043876528,7.0082,142.69,142.66,17.5236]
[1727043876682,22.0179,142.72,142.66,17.5236]
[1727043876992,7.0083,142.69,142.65,7.01]
[1727043878997,22.0179,142.72,142.64,50.912674]
[1727043879200,7.0086,142.69,142.65,7.0099]
[1727043880113,7.0086,142.69,142.64,50.912874]
[1727043881112,7.0087,142.68,142.64,7.0105]
[1727043881303,7.0092,142.67,142.63,24.5381]
[1727043882087,7.0097,142.66,142.62,20.0]
[1727043882307,7.0097,142.66,142.62,27.0116]
[1727043882926,7.0101,142.65,142.61,7.012]
[1727043883612,0.12549,142.7,142.62,7.0115]
[1727043883820,17.5208,142.69,142.6,17.5306]
[1727043884316,7.0107,142.64,142.6,24.5429]
[1727043884699,7.0103,142.65,142.6,24.5429]
[1727043885723,7.0103,142.65,142.61,7.012]
[1727043886509,17.5208,142.69,142.6,24.5431]
[1727043886510,7.0106,142.64,142.6,24.5431]
[1727043887931,7.0111,142.63,142.6,17.5306]
[1727043888101,7.0111,142.63,142.59,7.013]
[1727043890829,7.0111,142.63,142.58,30.915774]
[1727043891514,7.0111,142.63,142.58,7.0134]
[1727043892306,7.0108,142.64,142.6,7.0124]
[1727043893021,7.0102,142.65,142.6,7.0124]
[1727043893225,7.0102,142.65,142.61,7.012]
[1727043894516,7.0102,142.65,142.6,7.0124]
[1727043895531,7.0106,142.64,142.6,7.0124]
[1727043896923,6.91631961,142.64,142.6,7.0124]
[1727043900236,7.0111,142.63,142.59,24.5453]
[1727043900532,7.0124,142.61,142.57,27.014]
[1727043900737,7.0129,142.6,142.56,24.8776787]
[1727043901735,7.0122,142.61,142.56,24.8776787]
[1727043901913,7.0117,142.62,142.58,7.0135]
[1727043902331,7.0112,142.63,142.58,7.0135]
[1727043902816,15.8305,142.66,142.57,23.902374]
[1727043903018,7.0103,142.65,142.6,7.0122]
[1727043903337,7.0107,142.64,142.6,7.0122]
[1727043903634,7.0107,142.64,142.61,1.01295205]
[1727043905750,6.2148,142.69,142.62,23.902374]
[1727043906037,6.2148,142.69,142.62,24.91525502]
[1727043906536,7.0091,142.68,142.63,7.0111]
[1727043906848,7.0093,142.67,142.63,7.0111]
[1727043907204,6.2148,142.69,142.62,48.317184]
[1727043907205,7.0098,142.66,142.62,48.317184]
[1727043907414,7.0098,142.66,142.62,24.5403]
[1727043907830,7.0102,142.65,142.62,17.5287]
[1727043909062,7.0102,142.65,142.61,7.0117]
[1727043910351,7.0097,142.66,142.62,7.0116]
[1727043910518,7.0097,142.66,142.61,7.012]
[1727043911523,7.0097,142.66,142.62,7.0116]
[1727043911949,6.2148,142.69,142.6,7.0124]
[1727043911950,7.0109,142.64,142.6,7.0124]
[1727043912119,7.0112,142.63,142.59,24.5448]
[1727043912543,17.5237,142.67,142.56,17.8636787]
[1727043912723,0.12549,142.66,142.56,17.8636787]
[1727043912927,15.6464,142.65,142.56,17.8636787]
[1727043913723,15.6464,142.65,142.56,0.3275787]
[1727043913724,7.0134,142.59,142.56,0.3275787]
[1727043914030,6.62559,142.64,142.56,0.3275787]
[1727043914031,41.430574,142.63,142.56,0.3275787]
[1727043914235,7.014,142.57,142.56,0.3275787]
[1727043914552,7.0136,142.58,142.56,0.3275787]
[1727043915351,7.0132,142.59,142.56,0.3275787]
[1727043916446,7.0137,142.58,142.56,0.3275787]
[1727043916829,7.014,142.57,142.56,0.3275787]
[1727043919336,7.0137,142.58,142.56,0.3275787]
[1727043919559,7.0132,142.59,142.56,0.3275787]
[1727043920059,7.0136,142.58,142.56,0.3275787]
[1727043920359,7.014,142.57,142.56,0.3275787]
[1727043923057,7.0137,142.58,142.56,0.3275787]
[1727043923357,17.531,142.61,142.56,0.3275787]
[1727043923358,7.014,142.57,142.56,0.3275787]
[1727043925452,7.0164,142.53,142.5,0.4015458]
[1727043925956,7.0167,142.52,142.5,0.4015458]
[1727043926355,7.017,142.51,142.5,0.4015458]
[1727043941274,7.14249,142.51,142.5,0.4015458]
[1727043941783,7.017,142.51,142.5,0.4015458]
[1727043945669,7.0166,142.52,142.5,0.4015458]
[1727043945871,7.0154,142.55,142.5,7.4189458]
[1727043947075,7.0148,142.56,142.5,0.4015458]
[1727043947277,32.8637,142.58,142.51,7.0169]
[1727043947490,7.0152,142.55,142.5,7.4190458]
[1727043949485,7.0152,142.55,142.5,7.0175]
[1727043950505,17.5344,142.58,142.49,47.506027]
[1727043950675,0.12549,142.59,142.49,22.943627]
[1727043950676,7.017,142.51,142.49,22.943627]
[1727043952998,7.017,142.51,142.49,0.576227]
[1727043953725,7.0175,142.5,142.49,0.576227]
[1727043955199,7.017,142.51,142.49,0.576227]
[1727043955512,17.5393,142.54,142.49,0.576227]
[1727043955883,7.0167,142.52,142.49,0.576227]
[1727043956500,17.5356,142.57,142.49,7.594127]
[1727043956688,7.0156,142.54,142.49,7.594127]
[1727043957003,7.0161,142.53,142.49,7.594127]
[1727043959592,7.0155,142.54,142.5,8.42079515]
[1727043959798,33.2566,142.6,142.51,15.4587]
[1727043960004,7.0149,142.56,142.52,7.62540962]
[1727043960212,7.0149,142.56,142.52,14.64180962]
[1727043960428,7.0141,142.57,142.52,14.64180962]
[1727043960723,17.5282,142.63,142.54,7.0151]
[1727043960930,17.5282,142.63,142.55,7.0149]
[1727043961088,7.013,142.6,142.55,7.0149]
[1727043961286,7.0132,142.59,142.55,23.776884]
[1727043961522,7.0126,142.6,142.55,30.791784]
[1727043962991,7.0131,142.59,142.55,23.776884]
[1727043963199,7.0131,142.59,142.54,24.5535]
[1727043964299,7.0127,142.6,142.55,7.0148]
[1727043964524,7.0127,142.6,142.55,23.902374]
[1727043965690,7.0133,142.59,142.55,23.902374]
[1727043966711,7.0137,142.58,142.54,0.12549]
[1727043968100,17.5282,142.63,142.54,7.14089]
[1727043968101,7.0131,142.59,142.54,7.14089]
[1727043968497,7.014,142.58,142.54,0.12549]
[1727043968715,17.5282,142.63,142.54,0.12549]
[1727043968917,7.0137,142.58,142.54,0.12549]
[1727043969176,17.5308,142.61,142.53,23.947423]
[1727043969334,7.0149,142.56,142.53,0.170539]
[1727043969612,17.732078,142.64,142.53,0.170539]
[1727043970390,7.0125,142.61,142.56,15.6974]
[1727043970626,17.606588,142.64,142.56,15.6974]
[1727043970920,7.0132,142.59,142.56,15.6974]
[1727043971695,7.0136,142.58,142.56,15.6974]
[1727043972113,17.5295,142.62,142.56,15.6974]
[1727043972114,7.0132,142.59,142.56,15.6974]
[1727043972791,7.0127,142.6,142.56,15.6974]
[1727043973427,7.0127,142.6,142.56,22.7119]
[1727043975337,7.0127,142.6,142.56,15.6974]
[1727043976030,17.5286,142.63,142.56,15.6974]
[1727043976330,7.0137,142.58,142.56,15.6974]
[1727043978729,7.0127,142.6,142.56,15.6974]
[1727043979325,0.079788,142.64,142.56,15.6974]
[1727043979636,0.079788,142.64,142.6,7.0126]
[1727043980321,0.079788,142.64,142.61,1.40218275]
[1727043980518,7.090488,142.64,142.61,1.40218275]
[1727043980735,7.090488,142.64,142.59,24.5453]
[1727043981239,7.090488,142.64,142.58,30.790384]
[1727043981240,0.079788,142.64,142.58,30.790384]
[1727043981641,7.0112,142.63,142.58,30.790384]
[1727043982408,7.090488,142.64,142.58,41.310384]
[1727043982638,0.079788,142.64,142.6,7.0126]
[1727043982846,0.079788,142.64,142.62,7.0112]
[1727043983135,0.079788,142.64,142.63,31.038964]
[1727043985726,0.079788,142.64,142.63,46.401664]
[1727043987048,0.079788,142.64,142.63,66.401664]
[1727043987922,0.079788,142.64,142.63,67.05439621]
[1727043988449,0.079788,142.64,142.62,6.6304]
[1727043989046,0.079788,142.64,142.59,32.8953]
[1727043989218,7.0111,142.63,142.59,32.8953]
[1727043989426,7.0111,142.63,142.59,39.9083]
[1727043989743,7.0111,142.63,142.6,23.776884]
[1727043990528,7.090388,142.64,142.6,23.776884]
[1727043991933,0.079788,142.64,142.62,0.25098]
[1727043992121,0.079788,142.64,142.63,31.88985501]
[1727043992322,0.079788,142.64,142.63,51.88985501]
[1727043992649,0.079788,142.64,142.63,52.44064729]
[1727043992962,0.079788,142.64,142.63,58.46674729]
[1727043993125,0.079788,142.64,142.63,72.223364]
[1727044004734,0.250327,142.68,142.67,7.13459]
[1727044004943,0.250327,142.68,142.67,31.67632205]
[1727044005433,0.250327,142.68,142.67,32.31291733]
[1727044007262,0.250327,142.68,142.64,20.12549]
[1727044007465,7.259027,142.68,142.65,23.902374]
[1727044007766,0.250327,142.68,142.65,48.437074]
[1727044007940,0.250327,142.68,142.66,0.12549]
[1727044008345,0.250327,142.68,142.66,7.13509]
[1727044011263,0.250327,142.68,142.67,31.036964]
[1727044011558,0.250327,142.68,142.67,51.036964]
[1727044015644,0.250327,142.68,142.67,52.12712626]
[1727044020775,0.250327,142.68,142.67,51.036964]
[1727044021277,0.250327,142.68,142.66,20.0]
[1727044021451,0.250327,142.68,142.65,17.525]
[1727044022352,0.250327,142.68,142.65,24.535]
[1727044023271,0.250327,142.68,142.64,24.027864]
[1727044023571,0.250327,142.68,142.64,17.77708]
[1727044024181,0.250327,142.68,142.65,30.786884]
[1727044024373,0.250327,142.68,142.65,23.776884]
[1727044024565,0.250327,142.68,142.67,23.776884]
[1727044024880,0.250327,142.68,142.67,31.036964]
[1727044025056,0.250327,142.68,142.67,51.036964]
[1727044025654,0.250327,142.72,142.71,68.553064]
[1727044025855,0.250327,142.72,142.71,83.03334661]
[1727044026048,0.250327,142.72,142.71,84.43426685]
[1727044026481,0.250327,142.72,142.71,83.03334661]
[1727044027375,7.257027,142.72,142.68,17.5211]
[1727044028072,7.257027,142.72,142.68,24.5295]
[1727044028852,7.0077,142.7,142.66,20.0]
[1727044029077,7.0083,142.69,142.65,17.5249]
[1727044030385,7.0083,142.69,142.65,24.5348]
[1727044030757,7.0078,142.7,142.65,24.5348]
[1727044030979,22.5246,142.71,142.66,7.0094]
[1727044031266,15.5173,142.71,142.67,7.009]
[1727044032789,0.250327,142.72,142.68,23.776884]
[1727044033671,0.250327,142.72,142.7,7.0073]
[1727044034096,0.250327,142.72,142.69,24.528]
[1727044037986,0.250327,142.72,142.67,23.776884]
[1727044038282,0.250327,142.72,142.68,7.0086]
[1727044038983,0.250327,142.72,142.69,7.0081]
[1727044039379,0.250327,142.72,142.7,0.60664147]
[1727044040078,0.250327,142.72,142.69,7.0081]
[1727044040886,7.0077,142.7,142.66,27.0095]
[1727044041066,7.0077,142.7,142.66,7.0095]
[1727044042299,7.0077,142.7,142.65,17.5246]
[1727044042587,0.250327,142.72,142.62,17.5284]
[1727044042588,16.4977,142.71,142.62,17.5284]
[1727044043964,16.4977,142.71,142.63,24.027864]
[1727044044468,7.009,142.68,142.64,7.0104]
[1727044047684,0.250327,142.72,142.67,17.5227]
[1727044047891,0.250327,142.72,142.68,24.027864]
[1727044048187,0.250327,142.72,142.69,0.65457849]
[1727044049091,0.250327,142.72,142.69,7.008]
[1727044049261,0.250327,142.72,142.67,17.5227]
[1727044049465,7.0072,142.71,142.67,24.5315]
[1727044050888,7.0072,142.71,142.57,21.08]
[1727044050889,0.250327,142.72,142.64,17.5258]
[1727044051269,7.0086,142.69,142.64,24.5363]
[1727044052997,7.0075,142.71,142.65,23.902374]
[1727044053196,7.0075,142.71,142.67,7.0091]
[1727044054186,7.0075,142.71,142.66,24.5333]
[1727044054568,7.0077,142.7,142.66,24.5333]
[1727044055090,7.0077,142.7,142.66,17.5238]
[1727044055294,0.250327,142.72,142.63,14.48028261]
[1727044055295,7.0083,142.69,142.64,20.0]
[1727044055595,7.0083,142.69,142.65,7.01]
[1727044055807,7.0087,142.68,142.64,7.0104]
[1727044056295,7.0086,142.69,142.64,7.0104]
[1727044056602,7.0097,142.66,142.6,17.5306]
[1727044056791,7.0102,142.65,142.61,7.012]
[1727044056984,7.0097,142.66,142.61,7.012]
[1727044057180,7.0097,142.66,142.62,7.0115]
[1727044057492,7.0093,142.67,142.63,7.0111]
[1727044057802,16.4163,142.71,142.64,17.5261]
[1727044058371,7.0087,142.68,142.64,24.5366]
[1727044059230,7.0083,142.69,142.64,24.5366]
[1727044062085,33.9351,142.71,142.62,7.0115]
[1727044062283,7.01,142.66,142.61,24.542]
[1727044063176,7.01,142.66,142.62,7.0115]
[1727044065796,33.9351,142.71,142.58,0.250327]
[1727044065797,22.6276,142.65,142.58,0.250327]
[1727044066500,7.0131,142.59,142.58,0.250327]
[1727044066724,23.4294,142.59,142.58,0.250327]
[1727044067897,16.4163,142.59,142.58,0.250327]
[1727044068216,23.4294,142.59,142.58,0.250327]
[1727044070212,7.0155,142.54,142.53,0.250327]
[1727044071608,7.0149,142.56,142.53,0.250327]
[1727044071980,7.0152,142.55,142.53,0.250327]
[1727044073612,7.0155,142.54,142.53,0.250327]
[1727044074307,7.0155,142.54,142.53,0.150327]
[1727044078617,17.5351,142.58,142.49,7.3614654]
[1727044078618,7.0162,142.53,142.49,0.250327]
[1727044078801,7.0162,142.53,142.49,0.4422066]
[1727044080696,22.7692,142.59,142.51,23.776884]
[1727044081023,7.0131,142.59,142.54,7.0151]
[1727044081206,7.0131,142.59,142.55,8.4177602]
[1727044081606,7.0131,142.59,142.55,7.015]
[1727044081820,7.0131,142.59,142.54,17.5383]
[1727044081821,15.4777,142.63,142.54,17.5383]
[1727044082009,7.0131,142.59,142.55,30.791784]
[1727044083301,17.5297,142.62,142.54,23.776884]
[1727044083732,15.4777,142.63,142.54,23.776884]
[1727044083902,15.4777,142.63,142.55,0.12549]
[1727044084404,7.0122,142.61,142.56,7.0141]
[1727044084607,6.4529,142.64,142.57,17.78558]
[1727044084804,6.4529,142.64,142.59,0.25098]
[1727044085116,13.4637,142.64,142.59,7.26398]
[1727044085426,0.1,142.64,142.6,7.0125]
[1727044085632,7.1108,142.64,142.59,24.79598]
[1727044085927,7.0121,142.61,142.57,23.776884]
[1727044086131,7.0126,142.6,142.57,23.776884]
[1727044087327,7.0115,142.63,142.56,23.776884]
[1727044087505,7.0117,142.62,142.58,7.0132]
[1727044087832,7.0112,142.63,142.58,7.0132]
[1727044089631,7.0117,142.62,142.58,7.0132]
[1727044090517,17.6273,142.64,142.56,23.776884]
[1727044090922,0.1,142.64,142.57,0.25098]
[1727044091230,7.0117,142.62,142.57,7.26458]
[1727044091435,0.1,142.64,142.57,7.26458]
[1727044091626,0.1,142.64,142.57,0.25098]
[1727044091827,0.1,142.64,142.56,30.791284]
[1727044093321,7.0127,142.6,142.56,30.791284]
[1727044095526,0.1,142.64,142.58,7.0131]
[1727044095840,0.1,142.64,142.59,1.03753313]
[1727044096036,7.012,142.62,142.57,24.5487]
[1727044096418,7.0133,142.59,142.56,23.776884]
[1727044096637,7.0122,142.61,142.56,7.26508]
[1727044097541,7.0122,142.61,142.57,7.014]
[1727044099946,0.1,142.64,142.56,0.25098]
[1727044100241,0.1,142.64,142.56,17.78668]
[1727044100541,17.5282,142.63,142.56,0.25098]
[1727044100946,7.0127,142.6,142.56,7.26548]
[1727044101542,7.0122,142.61,142.56,7.26548]